[Event "Bijnor Open 2024"]
[Site "Bijnor"]
[Date "2024.03.20"]
[Round "8.6"]
[White "Ram Prakash, R."]
[Black "Royal, Shreyas"]
[Result "1/2-1/2"]
[ECO "A12"]
[WhiteElo "2191"]
[BlackElo "2457"]
[Annotator "TA"]
[PlyCount "117"]
[EventDate "2024.03.17"]
[EventCountry "IND"]
[SourceTitle "playchess.com"]
[Source "ChessBase"]
[SourceQuality "1"]
[TimeControl "5400+30"]

{[%evp 25,117,10,42,23,75,46,55,19,42,22,30,43,71,39,45,46,55,37,104,102,103,109,110,94,175,179,278,86,110,111,99,99,133,127,135,139,126,-85,-103,-153,-163,-164,-161,-157,-145,-157,-145,-320,-322,-314,-318,-353,-395,-399,-399,-381,-365,-382,-374,-361,-241,-238,-235,-233,-223,-193,-181,-177,-177,-175,-167,-185,-195,-199,-143,-123,-126,-114,-127,-136,-129,-114,-102,-100,-100,-194,-8,-12,-14,-157,-8,-8,-8,-8]} 1. Nf3 {[%emt 0:00:23]} Nf6 {[%emt 0:01:40]} 2. b3 {[%emt 0:00:55]} d5 {[%emt 0:00:29]} 3. Bb2 {[%emt 0:00:06]} Bf5 {[%emt 0:00:46]} 4. e3 {[%emt 0:00:20]} e6 {[%emt 0:01:35]} 5. Be2 {[%emt 0:00:46]} Nbd7 {[%emt 0:00:23]} 6. O-O {[%emt 0:02:03]} Bd6 {[%emt 0:02:40]} 7. c4 {[%emt 0:01:25]} c6 {[%emt 0:01:09]} 8. Nc3 {[%emt 0:09:05]} O-O {[%emt 0:06:36]} 9. Nh4 {[%emt 0:02:41] A12: English Opening: 1...c6 with b3 by White.} Bg6 {[%emt 0:02:39]} 10. Nxg6 {[%emt 0:00:49]} hxg6 {[%emt 0:00:27]} 11. d4 {[%emt 0:00:38]} Qe7 {[%emt 0:06:38]} 12. a3 {[%emt 0:01:46]} a6 $146 {[%emt 0:14:46]} ({Predecessor:} 12... Rac8 13. Bf3 Rfd8 14. Qc2 e5 15. g3 e4 16. Bg2 Nf8 17. b4 Qd7 18. Qe2 Re8 {0-1 Arabidze,M (2438)-Maevsky,N (2337) Titled Tuesday intern op 13th July blitz 2021 (5)}) 13. Qc2 {[%emt 0:07:08]} dxc4 {[%emt 0:05:58]} 14. bxc4 {[%emt 0:00:40]} Rac8 {[%emt 0:06:24]} (14... c5 $11 {remains equal.}) 15. Rfd1 {[%emt 0:04:49]} e5 {[%emt 0:02:59]} 16. Bf3 {[%emt 0:01:08]} Rfe8 {[%emt 0:01:45]} 17. g3 {[%emt 0:00:44]} e4 {[%emt 0:01:16]} 18. Bg2 {[%emt 0:00:04]} Nf8 {[%emt 0:04:08]} 19. Nb1 {[%emt 0:05:15]} N8h7 {[%emt 0:03:29]} 20. Qe2 {[%emt 0:00:59]} g5 {[%emt 0:00:22]} 21. h3 {[%emt 0:00:46]} Nf8 {[%emt 0:09:46]} (21... c5 $14) 22. Nd2 $16 {[%emt 0:01:01]} c5 {[%emt 0:03:22]} 23. dxc5 {[%emt 0:02:39]} Be5 {[%emt 0:01:01]} 24. Bd4 {[%emt 0:03:07]} (24. Nxe4 $2 Bxb2 25. Qxb2 Nxe4 $19) 24... Qc7 {[%emt 0:02:49]} (24... Rcd8 $16) 25. Rab1 $18 {[%emt 0:08:04]} (25. Bxe4 $2 Bxd4 26. exd4 Nxe4 27. Nxe4 f5 $19) 25... Rcd8 {[%emt 0:03:35]} (25... Qe7 $142 26. Nxe4 (26. Bxe4 Bxd4 27. Bxb7 Rc7 $17) 26... Nxe4 (26... Bxd4 $2 27. Rxb7 Bxc5 28. Rxe7 $18)) 26. Nf1 $2 {[%emt 0:04:26]} (26. Bxe4 $2 Bxd4 27. exd4 Rxd4 $19) (26. Nxe4 $18 {and the rest is easy.} Bxd4 27. Rxd4 (27. exd4 Rxe4 28. Bxe4 Re8 $18) 27... Nxe4 28. Bxe4) 26... Ne6 {[%emt 0:01:47]} 27. Qb2 {[%emt 0:03:01]} Bxd4 {[%emt 0:02:27]} 28. exd4 {[%emt 0:00:08]} Rd7 {[%emt 0:00:24]} 29. Rd2 {[%emt 0:02:44]} (29. Ne3 Red8 $16) 29... Red8 {[%emt 0:00:11]} 30. Rbd1 {[%emt 0:00:26]} Qa5 {[%emt 0:00:08]} 31. Qc1 $2 {[%emt 0:03:41]} (31. Kh2 $16) 31... Nxd4 $17 {[%emt 0:03:57]} 32. Kh1 {[%emt 0:01:19]} (32. Qb2 $142 Qxc5 33. Ne3 Ne2+ 34. Kh2 Rxd2 35. Rxd2 Rxd2 36. Qxd2) 32... Nb3 $17 {[%emt 0:02:43]} 33. Rxd7 {[%emt 0:00:10]} Rxd7 {[%emt 0:00:39]} (33... Nxd7 34. Qxg5 Nbxc5 35. Bxe4 $16) 34. Qb1 {[%emt 0:00:43]} Rxd1 {[%emt 0:00:34]} (34... Nxc5 35. Rxd7 Nfxd7 36. Bxe4 $17) 35. Qxd1 {[%emt 0:00:04]} Nxc5 {[%emt 0:00:28]} 36. Qc1 $2 {[%emt 0:01:22]} (36. Qa1 $17) 36... Nd3 $19 {[%emt 0:01:36]} 37. Qe3 {[%emt 0:01:32]} Qxa3 {[%emt 0:00:07]} 38. f3 {[%emt 0:00:55]} Qc5 {[%emt 0:00:31]} 39. fxe4 {[%emt 0:00:16]} Qxe3 {[%emt 0:00:38]} ({Don't play} 39... Qxc4 40. Qxg5 Ne1 (40... Nxe4 41. Qd8+ Kh7 42. Qh4+ Kg8 43. Qd8+ Kh7 44. Qh4+ Kg8 45. Qd8+ $11) 41. Nd2) 40. Nxe3 {[%emt 0:00:03]} Nxe4 {[%emt 0:00:50]} 41. Kg1 {[%emt 0:01:16]} Nd6 {[%emt 0:00:20]} (41... Nxg3 42. Bxb7 Nc5 43. Bd5) 42. Kf1 {[%emt 0:00:15]} b5 {[%emt 0:00:19]} 43. cxb5 {[%emt 0:01:52]} axb5 {[%emt 0:00:04]} 44. Nd5 {[%emt 0:00:39]} Ne5 {[%emt 0:01:17]} 45. Ke2 {[%emt 0:00:30]} f5 {[%emt 0:00:30]} 46. Ke3 {[%emt 0:00:17]} Kf7 {[%emt 0:01:23]} 47. Kd4 {[%emt 0:00:14]} Nd7 {[%emt 0:01:28]} 48. Nc7 {[%emt 0:01:33] [#]} Nf6 $1 {[%emt 0:00:18]} 49. Na6 {[%emt 0:03:21]} Nde4 {[%emt 0:00:46]} (49... Ke7 $19 50. Bf1 f4 51. gxf4 gxf4) 50. g4 $17 {[%emt 0:00:32]} fxg4 {[%emt 0:00:26]} 51. hxg4 {[%emt 0:06:01]} Nf2 {[%emt 0:00:19]} 52. Bf1 {[%emt 0:00:30]} N2xg4 {[%emt 0:00:32]} (52... N6xg4 53. Bxb5 Nh6 54. Ke3 Nfg4+ 55. Kf3 $17) 53. Bxb5 {[%emt 0:00:11]} Nh6 {[%emt 0:00:56]} 54. Nc5 {[%emt 0:00:51]} g4 {[%emt 0:00:11]} 55. Ke3 {[%emt 0:01:43] [#]} (55. Ke5 $17) 55... Kg6 $2 {[%emt 0:01:08]} (55... Nh5 $1 $19 {aiming for ...Nf5+.} 56. Kf2 Nf5) 56. Ne6 {[%emt 0:00:44]} Nd5+ {[%emt 0:00:30]} 57. Kf2 {[%emt 0:00:30]} (57. Kd4 $11 {was the only way to keep the balance.}) 57... Kf6 {[%emt 0:00:11]} ({Better is} 57... Nf5 $17 {...Kf6 would now be deadly.} 58. Bc6 Nf6) 58. Nxg7 $1 $11 {[%emt 0:00:46]} Kxg7 {[%emt 0:00:03]} 59. Bd7 {[%emt 0:00:15]} 1/2-1/2

[Event "Bijnor Open 2024"]
[Site "Bijnor"]
[Date "2024.03.20"]
[Round "8.7"]
[White "Chaudhary Sanjeev"]
[Black "Daksh Goyal"]
[Result "0-1"]
[ECO "C42"]
[WhiteElo "1652"]
[BlackElo "1926"]
[Annotator "RC"]
[PlyCount "56"]
[EventDate "2024.03.17"]
[EventCountry "IND"]
[SourceTitle "playchess.com"]
[Source "ChessBase"]
[SourceQuality "1"]
[TimeControl "5400+30"]

1. e4 {[%emt 0:02:32]} e5 {[%emt 0:00:21]} 2. Nf3 {[%emt 0:01:12]} Nf6 {[%emt 0:00:02]} 3. Nc3 {[%emt 0:01:32]} Nc6 {[%emt 0:01:13]} 4. Bc4 {[%emt 0:00:39]} Bb4 {[%emt 0:02:44]} 5. a3 {[%emt 0:03:35]} Bxc3 {[%emt 0:00:46]} 6. dxc3 {[%emt 0:00:20]} h6 {[%emt 0:01:22]} 7. O-O {[%emt 0:03:54]} O-O {[%emt 0:00:15]} 8. Re1 {[%emt 0:00:47]} d6 {[%emt 0:00:24]} 9. h3 {[%emt 0:00:48]} Ne7 {[%emt 0:04:18]} 10. Qd3 {[%emt 0:06:47]} Bd7 {[%emt 0:11:28]} 11. b4 {[%emt 0:04:41]} d5 {[%emt 0:11:39]} 12. Bxd5 {[%emt 0:07:01]} Nexd5 {[%emt 0:00:21]} 13. exd5 {[%emt 0:00:15]} e4 {[%emt 0:00:04]} 14. Rxe4 {[%emt 0:01:27]} Bf5 {[%emt 0:01:43]} 15. Re8 {[%emt 0:01:43]} Bxd3 {[%emt 0:00:47]} 16. Rxd8 {[%emt 0:00:36]} Raxd8 {[%emt 0:00:03]} 17. cxd3 {[%emt 0:00:21]} Nxd5 {[%emt 0:00:06]} 18. Bd2 {[%emt 0:00:45]} Nb6 {[%emt 0:01:01]} 19. Nd4 {[%emt 0:01:12]} Rfe8 {[%emt 0:00:47]} 20. Be3 {[%emt 0:05:33]} a6 {[%emt 0:01:47]} 21. c4 {[%emt 0:01:04]} Rd7 {[%emt 0:01:14]} 22. a4 {[%emt 0:02:48]} Red8 {[%emt 0:02:13]} 23. a5 {[%emt 0:00:14]} Nc8 {[%emt 0:00:17]} 24. Re1 {[%emt 0:00:09]} Kh7 {[%emt 0:00:39]} 25. c5 {[%emt 0:01:08]} Rxd4 {[%emt 0:01:53]} 26. Bxd4 {[%emt 0:00:14]} Rxd4 {[%emt 0:00:02]} 27. Re8 {[%emt 0:00:15]} Na7 {[%emt 0:00:02]} 28. Rb8 {[%emt 0:00:24]} Nb5 {[%emt 0:00:16]} 0-1

[Event "Bijnor Open 2024"]
[Site "Bijnor"]
[Date "2024.03.20"]
[Round "8.8"]
[White "Srivardhan Reddy Devareddy"]
[Black "Arnav Agrawal"]
[Result "1-0"]
[ECO "E63"]
[WhiteElo "1662"]
[BlackElo "1843"]
[Annotator "NA RC"]
[PlyCount "113"]
[EventDate "2024.03.17"]
[EventCountry "IND"]
[SourceTitle "playchess.com"]
[Source "ChessBase"]
[SourceQuality "1"]
[TimeControl "5400+30"]

1. Nf3 {[%emt 0:07:25]} Nf6 {[%emt 0:00:23]} 2. c4 {[%emt 0:00:04]} g6 {[%emt 0:00:12]} 3. Nc3 {[%emt 0:00:54]} Bg7 {[%emt 0:00:04]} 4. g3 {[%emt 0:00:08]} O-O {[%emt 0:00:07]} 5. Bg2 {[%emt 0:00:02]} d6 {[%emt 0:00:27]} 6. d4 {[%emt 0:00:17]} Nc6 {[%emt 0:00:35]} 7. O-O {[%emt 0:00:39]} a6 {[%emt 0:01:43]} 8. b3 {[%emt 0:00:20]} Rb8 {[%emt 0:00:51]} 9. d5 {[%emt 0:00:29] is the new trend.} Na5 {[%emt 0:00:06] E63: King's Indian: Fianchetto: Panno Variation with 7...a6.} 10. Bg5 {[%emt 0:00:14]} c5 {[%emt 0:00:05]} 11. dxc6 {[%emt 0:01:02]} Nxc6 {[%emt 0:00:06]} 12. Rc1 {[%emt 0:00:53]} h6 {[%emt 0:02:16]} 13. Bd2 {[%emt 0:01:01]} Be6 {[%emt 0:02:32]} 14. e4 {[%emt 0:00:15]} Qd7 {[%emt 0:02:09]} 15. Qe2 $146 {[%emt 0:04:35]} ({Predecessor:} 15. Re1 b5 16. c5 d5 17. exd5 Nxd5 18. Nxd5 Bxd5 19. Bc3 Rfd8 20. Bxg7 Kxg7 21. Qe2 {0-1 Vishwa,V (2034)-Debevec,B (2149) Novi Sad TS Mix 156th 2021 (7)}) 15... Bg4 {[%emt 0:14:29]} 16. Rfd1 {[%emt 0:01:59]} Qe6 {[%emt 0:02:38]} 17. h3 {[%emt 0:27:49]} Bxh3 {[%emt 0:00:50]} 18. Nd5 {[%emt 0:02:06]} Bxg2 {[%emt 0:01:16]} 19. Kxg2 {[%emt 0:00:09]} Nxe4 {[%emt 0:14:57]} 20. Nf4 {[%emt 0:00:08]} Qf5 {[%emt 0:02:10]} 21. Nh4 {[%emt 0:00:25]} Qe5 {[%emt 0:00:24]} 22. Nf3 {[%emt 0:01:10]} Nd4 {[%emt 0:53:10]} 23. Nxe5 {[%emt 0:00:38]} Nxe2 {[%emt 0:00:00]} 24. Nd7 {[%emt 0:00:27]} (24. Nxe2 $17 dxe5 25. Bb4) 24... Nxc1 {[%emt 0:00:00]} 25. Bxc1 {[%emt 0:00:42]} Nc3 {[%emt 0:00:00]} 26. Rd2 {[%emt 0:00:22]} b5 {[%emt 0:00:00]} 27. Nxb8 {[%emt 0:00:23]} Rxb8 {[%emt 0:00:00]} 28. cxb5 {[%emt 0:00:37]} axb5 {[%emt 0:00:00]} 29. Bb2 {[%emt 0:00:13]} b4 {[%emt 0:00:00]} 30. Rc2 {[%emt 0:01:06]} Ra8 {[%emt 0:00:00]} 31. Bxc3 {[%emt 0:01:15]} bxc3 {[%emt 0:00:00]} 32. Kf3 {[%emt 0:02:17]} e6 {[%emt 0:00:00]} 33. Ke3 {[%emt 0:00:17]} d5 {[%emt 0:00:00]} 34. Kd3 {[%emt 0:00:28]} d4 {[%emt 0:00:00]} 35. Re2 {[%emt 0:01:45]} e5 {[%emt 0:00:00]} 36. Nd5 {[%emt 0:00:11]} f5 {[%emt 0:00:00]} 37. f3 {[%emt 0:00:08]} Re8 {[%emt 0:00:00]} 38. Nb4 {[%emt 0:02:02]} Bf8 {[%emt 0:00:00]} 39. Nc2 {[%emt 0:00:12]} Bc5 {[%emt 0:00:00]} 40. b4 {[%emt 0:00:20]} Ba7 {[%emt 0:00:00]} 41. a4 {[%emt 0:00:13]} Kf7 {[%emt 0:00:00]} 42. a5 {[%emt 0:00:13]} Ke6 {[%emt 0:00:00]} 43. b5 {[%emt 0:00:15]} Bc5 {[%emt 0:00:00]} 44. b6 {[%emt 0:00:53]} Kd5 {[%emt 0:00:00]} 45. b7 {[%emt 0:00:32]} Kc6 $4 {[%emt 0:00:00]} ({Not} 45... Bd6 46. a6 (46. Nxd4 $2 e4+ 47. fxe4+ fxe4+ 48. Kxc3 Be5 $19) 46... Kc6 (46... e4+ 47. fxe4+ Kc6 48. Nxd4+ Kb6 49. e5 $14) 47. Nxd4+ Kb6 48. a7 Kxb7 49. Nb5 $15) (45... Ba7 $19 {and life is good for Black.} 46. Nb4+ Kc5 47. Na6+ Kc6) 46. Rxe5 {[%emt 0:03:06]} Rd8 {[%emt 0:00:00]} 47. a6 {[%emt 0:00:34]} Bd6 {[%emt 0:00:00]} 48. Re6 {[%emt 0:00:06]} Kc7 {[%emt 0:00:00]} 49. Rxg6 {[%emt 0:00:21]} Kb8 {[%emt 0:00:00]} (49... h5 $142 50. Kxd4 (50. Nxd4 Be5 $14) 50... f4 51. Kxc3 (51. gxf4 h4 $18) 51... fxg3) 50. Rxh6 {[%emt 0:04:51]} Bxg3 {[%emt 0:00:00]} 51. Nb4 {[%emt 0:00:08]} Re8 {[%emt 0:00:00]} 52. Nc6+ {[%emt 0:05:13]} Kc7 {[%emt 0:00:00]} 53. b8=Q+ {[%emt 0:01:22]} Rxb8 {[%emt 0:00:00]} 54. Nxb8 {[%emt 0:00:20]} Kxb8 {[%emt 0:00:00]} 55. Kxd4 {[%emt 0:03:07]} Be1 {[%emt 0:00:00]} 56. Rc6 {[%emt 0:00:50]} Ka7 {[%emt 0:00:00]} 57. Ke5 {[%emt 0:01:56]} 1-0

[Event "Bijnor Open 2024"]
[Site "Bijnor"]
[Date "2024.03.20"]
[Round "8.9"]
[White "Mishra Kamad"]
[Black "Lakshya Nigam"]
[Result "1-0"]
[ECO "A15"]
[WhiteElo "1812"]
[BlackElo "1582"]
[Annotator "NA RC"]
[PlyCount "85"]
[EventDate "2024.03.17"]
[EventCountry "IND"]
[SourceTitle "playchess.com"]
[Source "ChessBase"]
[SourceQuality "1"]
[TimeControl "5400+30"]

1. b3 {[%emt 0:00:28]} g6 {[%emt 0:01:33]} 2. Bb2 {[%emt 0:00:33]} Nf6 {[%emt 0:00:05]} 3. c4 {[%emt 0:00:19]} Bg7 {[%emt 0:00:07]} 4. d4 {[%emt 0:00:37]} O-O {[%emt 0:00:21]} 5. Nc3 {[%emt 0:02:47]} d6 {[%emt 0:01:24]} 6. Nf3 {[%emt 0:01:29] A15: Englisch gegen Königs-Fianchetto.} Nbd7 {[%emt 0:01:29]} 7. g3 {[%emt 0:00:58]} e5 {[%emt 0:03:14]} 8. Bg2 {[%emt 0:01:37]} c6 {[%emt 0:09:56]} 9. e4 {[%emt 0:11:39]} Re8 {[%emt 0:06:49]} 10. dxe5 {[%emt 0:04:30]} Nxe5 {[%emt 0:00:39]} 11. Nxe5 {[%emt 0:02:06]} dxe5 {[%emt 0:00:14]} 12. O-O {[%emt 0:02:00]} Qc7 {[%emt 0:02:38]} 13. h3 {[%emt 0:02:57]} Be6 {[%emt 0:02:43]} 14. Qc2 {[%emt 0:04:00]} Nh5 {[%emt 0:04:48]} 15. Na4 {[%emt 0:02:43]} b6 {[%emt 0:03:27]} 16. Qe2 {[%emt 0:14:58]} Rad8 {[%emt 0:07:57]} 17. Rad1 {[%emt 0:02:33]} Qe7 {[%emt 0:11:17]} 18. Nc3 {[%emt 0:03:12]} a6 {[%emt 0:12:13]} 19. Qe3 {[%emt 0:03:02]} b5 {[%emt 0:02:20]} 20. cxb5 {[%emt 0:02:06]} axb5 {[%emt 0:00:17]} 21. Rxd8 {[%emt 0:02:47]} Rxd8 {[%emt 0:00:21]} 22. Qb6 {[%emt 0:02:37]} Rd2 {[%emt 0:03:29]} 23. Bc1 {[%emt 0:08:43]} Rc2 {[%emt 0:09:30]} 24. Qa5 {[%emt 0:12:18]} b4 {[%emt 0:02:56]} 25. Nb1 {[%emt 0:01:27]} h6 {[%emt 0:05:42]} 26. Rd1 {[%emt 0:03:02]} Qc5 {[%emt 0:01:43]} 27. Qa8+ {[%emt 0:01:00]} Kh7 {[%emt 0:01:07]} 28. Be3 {[%emt 0:00:44]} Qb5 {[%emt 0:00:32]} 29. Bf1 {[%emt 0:00:53]} Re2 {[%emt 0:01:16]} 30. Kg2 {[%emt 0:01:44]} f5 {[%emt 0:00:58]} 31. Rd2 $18 {[%emt 0:00:43]} ({Weaker is} 31. Bxe2 Qxe2 32. Qd8 fxe4 $17) 31... Nxg3 {[%emt 0:02:13]} 32. Kxg3 {[%emt 0:01:02]} Rxe3+ {[%emt 0:00:17]} 33. Kg2 {[%emt 0:00:17]} Qc5 {[%emt 0:00:16]} 34. fxe3 {[%emt 0:00:42]} Qxe3 {[%emt 0:00:17]} 35. Qxc6 {[%emt 0:00:49]} Qg5+ {[%emt 0:00:13]} 36. Kh1 {[%emt 0:01:37]} Qf4 {[%emt 0:00:39]} 37. Bg2 {[%emt 0:00:25]} Qg3 {[%emt 0:01:42]} 38. Qxe6 {[%emt 0:01:09]} f4 {[%emt 0:00:07]} 39. Qg4 {[%emt 0:00:28]} Qe1+ {[%emt 0:00:03]} 40. Kh2 {[%emt 0:00:08]} h5 {[%emt 0:00:04]} 41. Qe2 {[%emt 0:00:51]} Qg3+ {[%emt 0:00:11]} 42. Kh1 {[%emt 0:00:47]} Bh6 {[%emt 0:00:18]} 43. Qf2 {[%emt 0:00:18]} 1-0

[Event "Bijnor Open 2024"]
[Site "Bijnor"]
[Date "2024.03.20"]
[Round "8.10"]
[White "Anant Panwar"]
[Black "Vatsal Singla"]
[Result "1-0"]
[ECO "D30"]
[WhiteElo "1591"]
[BlackElo "1795"]
[Annotator "NA RC"]
[PlyCount "59"]
[EventDate "2024.03.17"]
[EventCountry "IND"]
[SourceTitle "playchess.com"]
[Source "ChessBase"]
[SourceQuality "1"]
[TimeControl "5400+30"]

1. d4 {[%emt 0:00:05]} d5 {[%emt 0:00:07]} 2. c4 {[%emt 0:00:02]} e6 {[%emt 0:00:05]} 3. g3 {[%emt 0:00:07]} c6 {[%emt 0:00:11]} 4. Bg2 {[%emt 0:00:27]} dxc4 {[%emt 0:01:51]} 5. Nf3 {[%emt 0:01:16]} b5 {[%emt 0:00:39]} 6. a4 {[%emt 0:04:52]} Bb7 {[%emt 0:00:17]} 7. O-O {[%emt 0:03:40]} Nd7 {[%emt 0:00:13]} 8. b3 {[%emt 0:03:27]} cxb3 {[%emt 0:00:33]} 9. Qxb3 {[%emt 0:00:25]} a6 {[%emt 0:00:12]} 10. Rd1 {[%emt 0:03:46]} Ngf6 {[%emt 0:00:43]} 11. Ne5 {[%emt 0:03:19]} Qc7 {[%emt 0:09:09]} 12. Bf4 {[%emt 0:10:12]} Nxe5 {[%emt 0:02:37]} 13. Bxe5 {[%emt 0:01:48]} Bd6 {[%emt 0:01:14]} 14. Bxf6 {[%emt 0:02:44]} gxf6 {[%emt 0:00:06]} 15. Nd2 {[%emt 0:03:00]} f5 {[%emt 0:14:20]} 16. e4 {[%emt 0:07:28]} fxe4 {[%emt 0:01:05]} 17. Nxe4 {[%emt 0:00:30]} Be7 {[%emt 0:00:04]} 18. Rac1 {[%emt 0:01:33]} Qb6 {[%emt 0:17:18]} 19. Nc5 {[%emt 0:10:46]} Bxc5 {[%emt 0:05:14]} 20. dxc5 {[%emt 0:01:01]} Qc7 {[%emt 0:00:22]} 21. Rd6 {[%emt 0:06:41]} O-O {[%emt 0:01:42]} 22. Rcd1 {[%emt 0:01:14]} Rfd8 {[%emt 0:01:42]} 23. Qe3 {[%emt 0:05:19]} Qe7 {[%emt 0:00:49]} 24. Qh6 {[%emt 0:06:35]} f6 {[%emt 0:02:26]} 25. Bh3 {[%emt 0:06:16]} Rxd6 {[%emt 0:02:13]} 26. cxd6 {[%emt 0:09:00]} Qf7 {[%emt 0:01:09]} 27. d7 {[%emt 0:01:17]} Rd8 {[%emt 0:01:11]} 28. Rd6 {[%emt 0:01:24]} Qf8 {[%emt 0:04:55]} 29. Bxe6+ {[%emt 0:00:35]} Kh8 {[%emt 0:00:02]} 30. Qxf8+ {[%emt 0:00:29]} 1-0

[Event "Bijnor Open 2024"]
[Site "Bijnor"]
[Date "2024.03.21"]
[Round "9.1"]
[White "Vignesh B"]
[Black "Srihari L R"]
[Result "1-0"]
[ECO "C01"]
[WhiteElo "2209"]
[BlackElo "2490"]
[Annotator "TA"]
[PlyCount "117"]
[EventDate "2024.03.17"]
[EventCountry "IND"]
[SourceTitle "playchess.com"]
[Source "ChessBase"]
[SourceQuality "1"]
[TimeControl "5400+30"]

{[%evp 9,117,-63,-64,-68,-54,-58,-59,-58,-40,-79,-64,-74,-54,-141,-74,-72,-63,-68,-68,-86,-64,-96,-87,-119,-73,-106,-108,-99,-100,-108,-80,-131,-108,-144,-161,-202,-109,-112,-94,-93,-100,-87,-100,-91,-65,-103,0,0,0,0,0,13,10,0,2,0,0,-8,-20,-58,-72,-66,27,-33,-20,-40,-14,-129,-145,-128,-87,-87,0,0,0,-4,12,0,0,0,22,22,22,22,246,97,246,238,237,96,96,96,103,103,393,104,382,355,422,92,92,101,87,68,558,547,29973,29972,29974,29973]} 1. e4 {[%emt 0:01:17]} e6 {[%emt 0:00:49]} 2. d4 {[%emt 0:01:14]} d5 {[%emt 0:01:56]} 3. Bd3 {[%emt 0:00:05]} c5 {[%emt 0:01:04]} 4. dxc5 {[%emt 0:00:36]} dxe4 {[%emt 0:01:59]} 5. Bxe4 {[%emt 0:00:15]} Qxd1+ {[%emt 0:00:46]} 6. Kxd1 {[%emt 0:00:05]} Nf6 {[%emt 0:00:18]} 7. Bd3 {[%emt 0:14:36]} Bxc5 {[%emt 0:02:30]} 8. Ke2 {[%emt 0:00:08] Black is slightly better.} Ng4 {[%emt 0:06:52]} 9. Nh3 {[%emt 0:09:03]} Nc6 {[%emt 0:00:06]} 10. c3 {[%emt 0:00:07] Wards off Nd4+} Nge5 {[%emt 0:04:30]} 11. Nf4 {[%emt 0:07:07]} (11. Be4 $15) 11... Nxd3 {[%emt 0:06:06]} (11... g5 $142 12. Nh5 Nxd3 13. Kxd3 Be7 (13... Bxf2 14. Nf6+ Kf8 15. Nd2 $11)) 12. Nxd3 $17 {[%emt 0:00:08]} Be7 {[%emt 0:00:05]} 13. b4 {[%emt 0:10:44]} e5 {[%emt 0:05:41]} 14. f3 {[%emt 0:00:23]} Bf5 {[%emt 0:01:37]} 15. Nd2 {[%emt 0:04:03]} O-O-O $36 {[%emt 0:00:29][%mdl 2048] Black is in control.} 16. Nf2 {[%emt 0:00:22]} Rd7 {[%emt 0:08:31]} (16... Be6 $142 {[%cal Oe5e4]} 17. Kd1 Kb8) 17. Nde4 {[%emt 0:03:19]} Be6 {[%emt 0:00:27]} 18. Rd1 {[%emt 0:00:21]} Bd5 {[%emt 0:03:25]} 19. Ke1 {[%emt 0:03:46]} b6 {[%emt 0:06:44]} 20. Nd2 {[%emt 0:04:32]} (20. Ng4 $142) 20... Rhd8 {[%emt 0:05:46]} 21. Nb3 {[%emt 0:07:38]} f5 {[%emt 0:02:27]} 22. Bb2 {[%emt 0:07:01]} Bh4 {[%emt 0:06:37]} (22... e4 $19 23. fxe4 fxe4) 23. b5 {[%emt 0:04:56]} Nb8 {[%emt 0:04:35]} 24. c4 {[%emt 0:02:51]} Bxc4 {[%emt 0:00:26]} 25. Rxd7 {[%emt 0:02:44]} Kxd7 {[%emt 0:00:13]} (25... Nxd7 $2 26. Rc1 Kb7 (26... Bxf2+ $2 27. Kxf2 Kb7 28. Rxc4 $18) 27. Rxc4 $18) 26. Bxe5 {[%emt 0:00:26] Rd1+ would now be deadly.} Ke6 {[%emt 0:02:09]} 27. Bxg7 {[%emt 0:04:22]} Rg8 {[%emt 0:01:03]} (27... Bxb5 28. Nd4+ Kf7 29. Nxb5 $14) (27... Kf7 $17 28. g3 Kxg7 29. gxh4 Re8+ (29... Bxb5 30. Nh3 $17) 30. Kd2 Re2+ (30... Bxb5 31. Nd4 $11) 31. Kc3 Bxb5 (31... Bxb3 32. axb3 Rxf2 33. Rxa7+ Kf6 34. Rb7 $14)) 28. Nd4+ $11 {[%emt 0:04:15]} Kd5 {[%emt 0:03:32]} 29. g3 $1 {[%emt 0:00:27]} (29. Nxf5 $2 {perishes.} Re8+ (29... Bxb5 $2 30. Rd1+ Ke6 31. Nd4+ Kf7 32. Nxb5 $18) 30. Kd2 Bxf2 $19) 29... Rxg7 {[%emt 0:14:12]} 30. Nxf5 {[%emt 0:00:06]} Bf6 {[%emt 0:00:09]} 31. Rd1+ {[%emt 0:00:20]} Ke6 {[%emt 0:00:01]} 32. Nxg7+ {[%emt 0:00:54]} Bxg7 {[%emt 0:00:02] This pair of bishops is nice.} 33. Ne4 {[%emt 0:01:58] Repels Bc3+} Bxb5 {[%emt 0:00:36]} 34. Kf2 {[%emt 0:00:45]} Nc6 {[%emt 0:01:42]} 35. Ng5+ {[%emt 0:01:11]} Kf6 {[%emt 0:01:29]} (35... Ke7 $15 36. Nxh7 Bc4 37. Re1+ Kd6) 36. h4 {[%emt 0:00:03]} (36. Rd7 $11) 36... h6 $15 {[%emt 0:00:11]} 37. Rd5 {[%emt 0:01:31]} a6 {[%emt 0:00:39]} 38. Nh3 {[%emt 0:00:39]} (38. Ne4+ $11 Ke7 39. f4) 38... Nb4 $17 {[%emt 0:00:43]} 39. Rd2 {[%emt 0:00:22]} ({Don't blunder} 39. Rd6+ $2 Ke7 40. Rg6 Kf7 (40... Bd4+ $2 41. Kg2 $19)) 39... Kf7 {[%emt 0:02:00]} 40. Nf4 {[%emt 0:01:55]} Bc3 {[%emt 0:00:21]} ({Black should play} 40... Bf8 $17 41. Kg2 Bc5) 41. Rd6 $11 {[%emt 0:00:13][%csl LRb6,LRh6]} Nxa2 {[%emt 0:00:12]} 42. Kg2 {[%emt 0:00:56]} Be5 {[%emt 0:05:09]} 43. Rxb6 {[%emt 0:00:20]} Bxf4 {[%emt 0:02:08]} 44. gxf4 {[%emt 0:00:01]} h5 {[%emt 0:00:57]} 45. Rh6 {[%emt 0:00:15][%mdl 1024] White has compensation.} Nc3 $1 {[%emt 0:00:18]} 46. Rxh5 {[%emt 0:00:18]} Bd7 $2 {[%emt 0:01:18]} (46... Kg6 $1 $11 {and Black has nothing to worry.} 47. Rg5+ Kf6) 47. Kf2 {[%emt 0:00:49]} (47. Rh7+ $18 Ke8 48. Rh5) 47... Nb5 {[%emt 0:00:05]} (47... Kf6 $16 {might work better.} 48. Rc5 Na4) 48. Rh7+ $18 {[%emt 0:00:40]} Ke8 {[%emt 0:00:23]} 49. h5 {[%emt 0:00:02]} (49. Rh6 $1 $18 {[%cal Rh6a6] is the precise move to win.}) 49... Nd6 $16 {[%emt 0:00:39]} 50. Rh8+ {[%emt 0:00:30]} Ke7 {[%emt 0:00:21]} 51. Ra8 {[%emt 0:00:06][%cal Oh5h6] Hoping for h6!} Bc8 $2 {[%emt 0:00:37][%mdl 8192]} (51... Nf5 $16) 52. Rb8 $2 {[%emt 0:03:49]} (52. h6 $18 {[%cal Oa8c8] and White stays clearly on top. Black must now prevent Rxc8!} Kf7 53. Rb8 (53. Ra7+ Bb7 $18)) 52... Kf7 $2 {[%emt 0:00:46][%mdl 8192]} (52... a5 $16 53. Ra8 Kf6) 53. h6 $18 {[%emt 0:00:30]} Kg8 {[%emt 0:00:46]} 54. Ke3 $2 {[%emt 0:00:24]} (54. Rb6 $18 Nb5 55. Rc6) 54... Kh7 $16 {[%emt 0:00:06][%cal Oc8h3] [#]} 55. Kd4 $1 {[%emt 0:00:01]} Bh3 {[%emt 0:00:54] [#]} 56. Ke5 $1 {[%emt 0:00:22]} Nf7+ {[%emt 0:00:13][%mdl 8192]} (56... Nf5 $1 $14) 57. Kf6 $18 {[%emt 0:00:02]} Nxh6 {[%emt 0:00:15]} 58. Rb7+ {[%emt 0:00:01]} Kh8 {[%emt 0:00:10]} 59. Kg6 {[%emt 0:00:02] What a bad dream for Black.   Weighted Error Value: White=0.38/Black=0.61.  Loses game:     	---       	Black=4      Missed win:     	White=2     	---        Mistake:       	White=6     	Black=7      Inaccurate:     	White=7     	Black=3      OK:         	White=11    	Black=16     Best:        	White=11    	Black=7      Strong:       	White=3     	Black=1} 1-0